bitfinex-derivatives/quotes_BNBF0:USTF0_20250511
["timestamp","ask_amount","ask_price","bid_price","bid_amount"]
[1746970802634,0.26590867,654.7,653.2,0.30554111]
[1746970802835,0.26590867,654.7,653.21,0.30554111]
[1746970803034,0.30547876,654.71,653.22,0.30554111]
[1746970803235,0.26588429,654.69,653.23,1.48756988]
[1746970803439,0.26588429,654.69,653.24,0.30554111]
[1746970803735,0.26588429,654.69,653.25,0.28088702]
[1746970803939,0.26588429,654.69,653.26,1.48756988]
[1746970804140,0.26588429,654.69,653.27,0.30554111]
[1746970804341,0.26588429,654.69,653.27,0.58642813]
[1746970804641,0.26588429,654.69,653.28,1.7684569]
[1746970804843,0.26588429,654.69,653.29,0.30554111]
[1746970805038,0.26588429,654.69,653.29,0.58642813]
[1746970805238,0.26588429,654.69,653.3,0.58642813]
[1746970805441,0.26588429,654.69,653.31,1.48756988]
[1746970805636,0.26588429,654.69,653.32,1.48756988]
[1746970805840,0.26588429,654.69,653.33,0.58642813]
[1746970806038,0.30547876,654.71,653.34,0.30554111]
[1746970806235,0.30547876,654.71,653.35,1.18202877]
[1746970806439,0.26587211,654.68,653.36,0.30554111]
[1746970806839,0.26587211,654.68,653.37,1.18202877]
[1746970807040,0.26587211,654.68,653.38,0.30554111]
[1746970807340,0.26587211,654.68,653.39,0.28088702]
[1746970807542,0.26587211,654.68,653.4,1.48756988]
[1746970807741,0.26587211,654.68,653.41,0.30554111]
[1746970807939,0.26587211,654.68,653.42,0.30554111]
[1746970808140,0.26587211,654.68,653.43,0.30554111]
[1746970808341,0.26587211,654.68,653.44,0.30554111]
[1746970808540,0.26587211,654.68,653.45,0.30554111]
[1746970808837,0.26587211,654.68,653.46,0.30554111]
[1746970809042,0.30547876,654.71,653.47,0.30554111]
[1746970809340,0.30547876,654.71,653.48,1.76828572]
[1746970809541,0.26585281,654.7,653.49,0.30554111]
[1746970809737,0.26585281,654.7,653.5,1.48756988]
[1746970809941,0.26585281,654.7,653.51,0.30554111]
[1746970810137,0.26585281,654.7,653.51,0.58625695]
[1746970810340,0.26585281,654.7,653.52,0.30554111]
[1746970810536,0.26585281,654.7,653.53,0.30554111]
[1746970810742,0.26585281,654.7,653.53,0.28071584]
[1746970810935,0.26585281,654.7,653.54,1.48756881]
[1746970811140,0.26585281,654.7,653.55,0.30554004]
[1746970811342,0.26585281,654.7,653.56,1.46274461]
[1746970811542,0.26585281,654.7,653.57,0.30554004]
[1746970811842,0.26585281,654.7,653.57,0.58625588]
[1746970812042,0.30547876,654.71,653.58,1.76828465]
[1746970812237,0.26584469,654.69,653.59,0.58625588]
[1746970812437,0.26584469,654.69,653.6,1.48756881]
[1746970812638,0.26584469,654.69,653.6,1.46274461]
[1746970812841,0.26584469,654.69,653.61,0.30554354]
[1746970813040,0.26584469,654.69,653.62,1.18202877]
[1746970813244,0.26584469,654.69,653.63,0.28071584]
[1746970813742,0.26584469,654.69,653.64,1.18202877]
[1746970814443,0.26584469,654.69,653.65,0.28071584]
[1746970814839,0.26584469,654.69,653.66,1.18202877]
[1746970815045,0.30547876,654.71,653.66,1.18202877]
[1746970815246,0.26585383,654.68,652.15,1.18202877]
[1746970815544,0.26585383,654.68,652.16,0.58633545]
[1746970815744,0.26585383,654.68,652.17,0.30558201]
[1746970816059,0.26585383,654.68,652.18,0.30558201]
[1746970816244,0.26585383,654.68,652.19,0.30558201]
[1746970816445,0.26585383,654.68,652.2,0.58634629]
[1746970816744,0.26585383,654.68,652.21,1.48761078]
[1746970816938,0.26585383,654.68,652.22,0.30558201]
[1746970817142,0.26585383,654.68,652.23,0.30558201]
[1746970817346,0.26585383,654.68,652.24,0.30558201]
[1746970817538,0.26585383,654.68,652.25,0.58634629]
[1746970817741,0.26585383,654.68,652.26,0.30558201]
[1746970817945,0.30547876,654.71,652.27,0.30558201]
[1746970818145,0.30547876,654.71,652.28,0.30558201]
[1746970818346,0.26602352,654.67,652.29,0.58634629]
[1746970818544,0.26602352,654.67,652.3,0.30558201]
[1746970818843,0.26602352,654.67,652.31,0.30558201]
[1746970819045,0.26602352,654.67,652.32,1.48761078]
[1746970819243,0.26602352,654.67,652.33,1.48761078]
[1746970819440,0.26602352,654.67,652.34,0.30558201]
[1746970819645,0.26602352,654.67,652.35,0.30558201]
[1746970819946,0.26602352,654.67,652.36,0.30566611]
[1746970820246,0.26602352,654.67,652.37,1.76845916]
[1746970820449,0.26602352,654.67,652.38,1.48769488]
[1746970820647,0.26602352,654.67,652.39,0.30566611]
[1746970820849,0.26602352,654.67,652.4,1.76845916]
[1746970821048,0.30547876,654.71,652.41,0.30566611]
[1746970821249,0.26600827,654.66,652.42,0.30566611]
[1746970821444,0.26600827,654.66,652.43,0.30566611]
[1746970821644,0.26600827,654.66,652.44,0.58643039]
[1746970821848,0.26600827,654.66,652.45,1.48769488]
[1746970822149,0.26600827,654.66,652.46,0.30566611]
[1746970822349,0.26600827,654.66,652.47,1.48769488]
[1746970822648,0.26600827,654.66,652.48,0.58643039]
[1746970822848,0.26600827,654.66,652.49,0.58643039]
[1746970823049,0.26600827,654.66,652.5,1.48769488]
[1746970823249,0.26600827,654.66,652.51,0.30566611]
[1746970823449,0.26600827,654.66,652.52,0.30566611]
[1746970823649,0.26600827,654.66,652.53,0.30566611]
[1746970823842,0.26600827,654.66,652.54,0.30566611]
[1746970824044,0.26600827,654.66,652.55,0.30566611]
[1746970824246,0.26600827,654.66,652.56,0.30566611]
[1746970824445,0.26600827,654.66,652.57,0.30566611]
[1746970824744,0.26600827,654.66,652.58,0.30566611]
[1746970824943,0.26600827,654.66,652.59,0.30566611]
[1746970825147,0.26600827,654.66,652.6,1.48769488]
[1746970825346,0.26600827,654.66,652.61,0.30566611]
[1746970825543,0.26600827,654.66,652.62,0.30565086]
[1746970825744,0.26600827,654.66,652.63,0.30565086]
[1746970825943,0.26600827,654.66,652.64,0.30565086]
[1746970826149,0.26600827,654.66,652.65,1.48767963]
[1746970826350,0.26600827,654.66,652.66,0.30565086]
[1746970826645,0.26600827,654.66,652.67,0.30565086]
[1746970826849,0.26600827,654.66,652.68,0.280829]
[1746970827151,0.30547876,654.71,652.69,1.48767963]
[1746970827346,0.26598082,654.65,652.7,0.30565074]
[1746970827552,0.26598082,654.65,652.71,0.30565074]
[1746970827751,0.26598082,654.65,652.72,1.76850851]
[1746970827951,0.26598082,654.65,652.73,0.30565074]
[1746970828146,0.26598082,654.65,652.74,0.280829]
[1746970828446,0.26598082,654.65,652.75,1.76850851]
[1746970828647,0.26598082,654.65,652.76,1.76850851]
[1746970828946,0.26598082,654.65,652.77,0.58647974]
[1746970829149,0.26598082,654.65,652.78,0.30565074]
[1746970829343,0.26598082,654.65,652.79,1.76852499]
[1746970829548,0.26598082,654.65,652.8,0.30566722]
[1746970829752,0.26598082,654.65,652.81,1.48769599]
[1746970829951,0.26598082,654.65,652.82,0.58649622]
[1746970830144,0.30547876,654.71,652.83,0.30566722]
[1746970830349,0.26597676,654.64,652.84,1.48769599]
[1746970830552,0.26597676,654.64,652.85,0.30566722]
[1746970830851,0.26597676,654.64,652.86,0.280829]
[1746970831151,0.26597676,654.64,652.87,0.30566722]
[1746970831451,0.26597676,654.64,652.87,1.76852499]
[1746970831654,0.26597676,654.64,652.88,0.58649622]
[1746970831854,0.26597676,654.64,652.89,1.76852499]
[1746970832152,0.26597676,654.64,652.9,0.30566722]
[1746970832349,0.26597676,654.64,652.9,1.76852499]
[1746970832552,0.26597676,654.64,652.91,0.58649622]
[1746970832751,0.26597676,654.64,652.92,1.48769599]
[1746970832949,0.26597676,654.64,652.93,0.30566722]
[1746970833151,0.26597676,654.64,652.94,1.18202877]
[1746970833348,0.26597676,654.64,652.95,0.30566722]
[1746970833553,0.26597676,654.64,652.95,0.58649622]
[1746970833849,0.26597676,654.64,652.96,1.76852499]
[1746970834055,0.26597676,654.64,652.97,0.30566722]
[1746970834351,0.26597676,654.64,652.98,0.280829]
[1746970834556,0.26597676,654.64,652.99,0.30566722]
[1746970834756,0.26597676,654.64,653.0,0.30573619]
[1746970835058,0.26597676,654.64,653.01,1.48776496]
[1746970835255,0.26597676,654.64,653.02,0.30573619]
[1746970835451,0.26597676,654.64,653.03,1.48776496]
[1746970835650,0.26597676,654.64,653.04,0.30573619]
[1746970835857,0.26597676,654.64,653.05,0.280829]
[1746970836058,0.30547876,654.71,653.06,1.18202877]
[1746970836258,0.26600014,654.63,653.06,1.18202877]
[1746970836455,0.30547876,654.71,653.07,0.280829]
[1746970836655,0.30547876,654.71,653.08,1.18202877]
[1746970837160,0.24504398,654.7,653.09,0.280829]
[1746970837359,0.511037,654.7,653.09,0.280829]
[1746970837562,0.511037,654.7,653.1,1.18202877]
[1746970837859,0.24504398,654.69,653.1,1.18202877]
[1746970838060,0.24504398,654.69,653.11,0.280829]
[1746970838860,0.24504398,654.69,652.69,0.280829]
[1746970839061,0.24504398,654.69,652.7,1.49017446]
[1746970839260,0.24504398,654.69,652.71,0.305824]
[1746970839756,0.24504398,654.69,652.72,0.280829]
[1746970839956,0.24504398,654.69,652.73,0.305824]
[1746970840161,0.24504398,654.69,652.72,1.46517946]
[1746970840357,0.24504398,654.69,651.49,0.62812075]
[1746970840556,0.24504398,654.69,642.53,0.55870369]
[1746970840856,0.24504398,654.68,642.53,0.55870369]
[1746970841361,0.24504398,654.67,642.53,0.55870369]
[1746970841865,0.24504398,654.66,642.53,0.55870369]
[1746970842365,0.24504398,654.65,642.53,0.55870369]
[1746970842665,0.24504398,654.64,642.53,0.55870369]
[1746970842964,0.24504398,654.63,642.53,0.55870369]
[1746970843160,0.51157177,654.63,642.53,0.55870369]
[1746970843370,1.9775294,652.42,648.38,0.96858583]
[1746970843765,1.9775294,652.42,649.07,0.63008366]
[1746970843968,1.9775294,652.42,649.07,0.91188521]
[1746970844163,1.9775294,652.42,649.08,0.91188521]
[1746970844468,1.9775294,652.42,649.09,0.91188521]
[1746970844766,1.9775294,652.42,649.1,0.91188521]
[1746970845267,1.9775294,652.42,649.11,0.91188521]
[1746970845466,1.9775294,654.77,649.12,0.91188521]
[1746970845666,0.26698275,652.41,649.12,0.91188521]
[1746970845967,0.24440279,654.7,649.13,0.91188521]
[1746970846161,1.9775294,654.77,649.13,0.91188521]
[1746970846361,1.9775294,654.77,649.14,0.91188521]
[1746970846667,0.26673412,654.7,649.14,0.91188521]
[1746970846967,0.511116,654.7,649.15,0.91188521]
[1746970847266,0.24438188,654.69,649.16,0.91188521]
[1746970847563,0.24438188,654.69,649.17,0.28180155]
[1746970847768,0.24438188,654.68,649.17,0.91188521]
[1746970848066,0.24438188,654.67,649.18,0.91188521]
[1746970848567,0.24438188,654.66,649.19,0.91188521]
[1746970848870,0.24438188,654.65,649.2,0.91188521]
[1746970849271,0.24438188,654.64,649.21,0.91188521]
[1746970849674,0.24438188,654.63,649.22,0.91188521]
[1746970849873,0.24438188,654.62,649.23,0.91188521]
[1746970850273,0.24438188,654.61,649.24,0.28180155]
[1746970850567,0.24438188,654.6,649.25,0.91188521]
[1746970851076,0.24438188,654.59,649.26,0.91188521]
[1746970851369,0.51113338,654.59,649.26,0.91188521]
[1746970851673,0.24438188,654.58,649.27,0.28180155]
[1746970851971,0.24438188,654.57,649.28,0.91188521]
[1746970852674,0.24438188,654.56,649.29,2.03881686]
[1746970852977,0.24438188,654.55,649.3,0.91188521]
[1746970853277,0.24438188,654.55,649.31,1.12693165]
[1746970853673,0.24438188,654.55,649.31,1.4087332]
[1746970853878,0.24438188,654.54,649.31,2.03881686]
[1746970854179,0.24438188,654.53,649.32,2.03881686]
[1746970854380,0.51113235,654.53,649.32,2.03881686]
[1746970854678,0.24438188,654.52,649.33,2.03881686]
[1746970854873,0.24438188,654.51,649.34,0.91188521]
[1746970855273,0.24438188,654.51,649.35,1.12693165]
[1746970855472,0.24438188,654.5,649.35,2.03881686]
[1746970855673,0.24438188,654.49,649.36,0.91188521]
[1746970855878,0.24438188,654.49,649.36,2.03881686]
[1746970856177,0.24438188,654.48,649.37,0.91188521]
[1746970856378,0.24438188,654.47,649.38,0.91188521]
[1746970856779,0.24438188,654.46,649.39,2.03881686]
[1746970857179,0.24438188,654.45,649.4,0.91188521]
[1746970857375,0.51117837,654.45,649.4,2.03881686]
[1746970857681,0.24438188,654.44,649.41,0.91188521]
[1746970857982,0.24438188,654.43,649.42,0.91188521]
[1746970858173,0.24438188,654.43,649.43,1.12693165]
[1746970858374,0.24438188,654.42,649.43,2.03881686]
[1746970858580,0.24438188,654.41,649.44,0.91188521]
[1746970858979,0.24438188,654.41,649.45,1.12693165]
[1746970859180,0.26679649,654.45,649.45,1.12693165]
[1746970859681,0.24429212,654.44,649.46,2.039]
[1746970859979,0.24429212,654.43,649.47,0.28186222]
[1746970860178,0.24429212,654.43,649.48,1.12693165]
[1746970860378,0.24429212,654.42,649.48,2.039]
[1746970860675,0.24429212,654.42,649.49,1.12693165]
[1746970860875,0.24429212,654.41,649.5,1.12693165]
[1746970861180,0.24429212,654.4,649.51,0.91206835]
[1746970861380,0.24429212,654.4,649.52,1.12693165]
[1746970861581,0.24429212,654.39,649.52,2.039]
[1746970861880,0.24429212,654.38,649.53,2.039]
[1746970862281,0.24429212,654.37,649.54,0.28186222]
[1746970862480,0.24429212,654.37,649.55,1.12693165]
[1746970862680,0.24429212,654.36,649.55,1.40879387]
[1746970862880,0.24429212,654.35,649.56,0.28186222]
[1746970863081,0.24429212,654.35,649.57,1.12693165]
[1746970863281,0.24429212,654.34,649.57,2.039]
[1746970863476,0.24429212,654.33,649.58,0.91206835]
[1746970863682,0.24429212,654.33,649.59,1.12693165]
[1746970863878,0.24429212,654.32,649.59,1.75713778]
[1746970864080,0.30576831,654.09,649.6,1.12693165]
[1746970864379,0.30576831,654.09,649.61,1.12693165]
[1746970864584,0.30576831,654.09,649.62,1.12693165]
[1746970864885,0.24429212,654.08,649.63,0.91206835]
[1746970865087,0.24429212,654.08,649.63,2.039]
[1746970865288,0.24429212,654.07,649.64,0.91206835]
[1746970865481,0.24429212,654.06,649.65,0.91206835]
[1746970865686,0.24429212,654.06,649.66,1.12693165]
[1746970865887,0.24429212,654.05,649.67,1.12693165]
[1746970866287,0.24429212,654.05,649.68,1.12693165]
[1746970866488,0.24429212,654.04,649.68,2.039]
[1746970866683,0.24429212,654.03,649.69,0.91206835]
[1746970866885,0.24429212,654.03,649.7,1.12693165]
[1746970867086,0.24429212,654.02,649.7,2.039]
[1746970867288,0.24429212,654.01,649.71,0.91206835]
[1746970867489,0.24429212,654.01,649.72,1.12693165]
[1746970867691,0.24429212,654.0,649.72,2.039]
[1746970867989,0.24429212,653.99,649.73,0.91206835]
[1746970868188,0.24429212,653.99,649.74,1.12693165]
[1746970868386,0.24429212,653.98,649.74,2.039]
[1746970868691,0.24429212,653.98,649.75,1.12693165]
[1746970868890,0.24429212,653.97,649.76,1.12693165]
[1746970869391,0.24429212,653.96,649.77,2.039]
[1746970869588,0.24429212,653.96,649.78,1.12693165]
[1746970869890,0.24429212,653.95,649.79,0.91206835]
[1746970870091,0.24429212,653.95,649.8,0.91206835]
[1746970870393,0.24429212,653.94,649.81,1.12693165]
[1746970870589,0.24429212,653.94,649.82,1.12693165]
[1746970870893,0.24429212,653.93,649.83,2.039]
[1746970871191,0.24429212,653.93,649.84,1.12693165]
[1746970871491,0.24429212,653.92,649.84,2.039]
[1746970871686,0.24429212,653.91,649.85,0.91206835]
[1746970871993,0.24429212,653.91,649.86,1.12693165]
[1746970872188,0.24429212,653.9,649.86,2.039]
[1746970872388,0.51104362,653.9,649.86,2.039]
[1746970872590,0.24429212,653.89,649.87,0.28186222]
[1746970872886,0.24429212,653.88,649.88,0.28186222]
[1746970873190,0.24429212,653.87,649.89,0.28186222]
[1746970873389,0.24429212,653.89,649.9,0.28186222]
[1746970873589,0.24429212,653.89,649.91,1.12693165]
[1746970873785,0.24429212,653.89,649.91,1.40879387]
[1746970874090,0.24429212,653.89,649.92,0.28186222]
[1746970874391,0.24429212,653.89,649.93,1.40879387]
[1746970874588,0.24429212,653.89,649.94,1.12693165]
[1746970874793,0.24429212,653.89,649.94,1.40879387]
[1746970874987,0.24429212,653.89,649.95,1.40879387]
[1746970875394,0.26673718,653.88,649.96,1.40879387]
[1746970875594,0.24429212,653.87,649.97,0.28186222]
[1746970875789,0.24429212,653.87,649.98,1.12693165]
[1746970875989,0.26673718,653.88,649.98,1.12693165]
[1746970876296,0.24454656,653.87,649.99,1.40866861]
[1746970876790,0.24454656,653.87,650.0,0.28173696]
[1746970876993,0.24454656,653.87,650.01,0.28173696]
[1746970877188,0.24454656,653.87,650.02,1.12693165]
[1746970877394,0.24454656,653.87,650.02,1.40866861]
[1746970877595,1.9775294,653.3,650.03,0.28173696]
[1746970878097,0.30621306,653.14,650.04,0.28173696]
[1746970878390,0.24454656,653.13,650.05,0.28173696]
[1746970878691,0.24454656,653.13,650.06,0.28173696]
[1746970879396,0.24454656,653.13,650.07,0.28173696]
[1746970879599,0.30628809,652.98,650.07,0.28173696]
[1746970879798,0.30628809,652.98,650.08,0.28173696]
[1746970880092,0.30628809,652.98,649.87,0.26685275]
[1746970880093,0.30628809,652.98,650.09,0.28173696]
[1746970880398,0.24454847,652.97,650.1,0.28173696]
[1746970880799,0.30628809,652.98,650.11,0.28173696]
[1746970881197,0.30628809,652.98,650.12,0.28173696]
[1746970881400,0.26685172,652.97,650.12,0.28173696]
[1746970881697,0.30635847,652.83,650.13,0.28173696]
[1746970881898,0.30635847,652.83,650.14,0.28173696]
[1746970882202,0.30635847,652.83,650.15,0.28173696]
[1746970882701,0.30635847,652.83,649.97,0.26685172]
[1746970882702,0.30635847,652.83,650.16,0.28173696]
[1746970883101,0.30635847,652.83,650.17,0.28173696]
[1746970883503,0.30635847,652.83,650.18,0.28173696]
[1746970884303,0.26687014,652.82,650.19,0.28173696]
[1746970884503,0.30642418,652.69,650.19,0.28173696]
[1746970884699,0.30642418,652.69,650.2,1.13250576]
[1746970884901,0.30642418,652.69,650.2,0.28173696]
[1746970885296,0.30642418,652.69,650.21,0.28173696]
[1746970885503,0.30642418,652.69,650.22,1.13406489]
[1746970885803,0.30642418,652.69,650.23,0.28177542]
[1746970886100,0.30642418,652.69,650.24,1.13406489]
[1746970886303,0.30642418,652.69,650.24,1.41584031]
[1746970886505,0.30642418,652.69,650.25,0.28177542]
[1746970886701,0.30642418,652.69,650.26,1.13406489]
[1746970886899,0.30642418,652.69,650.26,1.41584031]
[1746970887102,0.30642418,652.69,650.27,1.41584031]
[1746970887299,0.26684354,652.68,650.27,1.41584031]
[1746970887601,0.30648522,652.56,650.28,1.41584031]
[1746970887903,0.30648522,652.56,650.29,0.28177542]
[1746970888203,0.30648522,652.56,650.3,0.28177542]
[1746970888503,0.30648522,652.56,650.31,1.41584031]
[1746970888804,0.30648522,652.56,650.32,1.13406489]
[1746970889000,0.30648522,652.56,650.32,1.41584031]
[1746970889203,0.30648522,652.56,650.33,1.41584031]
[1746970889705,0.30648522,652.56,650.34,1.41584031]
[1746970889908,0.30648522,652.56,650.35,0.28177542]
[1746970890112,0.30648522,652.56,650.34,1.13406489]
[1746970890113,0.30648522,652.56,650.36,0.28177542]
[1746970890302,0.30648522,652.56,650.37,1.13406489]
[1746970890502,0.2668241,652.55,650.37,1.41584031]
[1746970890709,0.30653689,652.45,650.37,1.41584031]
[1746970890901,0.30653689,652.45,650.38,1.41584031]
[1746970891105,0.30653689,652.45,650.39,1.13406489]
[1746970891307,0.30653689,652.45,650.39,1.41584031]
[1746970891502,0.30653689,652.45,650.4,0.91180666]
[1746970891705,0.30653689,652.45,650.4,2.04587155]
[1746970892005,0.30653689,652.45,650.41,0.91180666]
[1746970892307,0.30653689,652.45,650.42,1.13406489]
[1746970892602,0.30653689,652.45,650.42,1.41584031]
[1746970893108,0.30653689,652.45,650.43,1.41584031]
[1746970893510,0.30653689,652.45,650.44,0.28177542]
[1746970893706,0.30653689,652.45,650.45,1.41584031]
[1746970894108,0.30653689,652.45,650.46,0.28177542]
[1746970894312,0.30653689,652.45,650.47,1.13406489]
[1746970894704,0.30653689,652.45,650.47,1.41584031]
[1746970894907,0.30653689,652.45,650.48,1.13406489]
[1746970895106,0.30653689,652.45,650.48,1.41584031]
[1746970895411,0.30653689,652.45,650.49,1.13406489]
[1746970895711,0.30653689,652.45,650.49,1.41584031]
[1746970895911,0.30653689,652.45,650.5,0.28177542]
[1746970896114,0.30653689,652.45,650.51,1.13406489]
[1746970896306,0.30653689,652.45,650.51,1.41584031]
[1746970896607,0.30653689,652.45,650.52,1.41584031]
[1746970896908,0.30653689,652.45,650.53,1.13406489]
[1746970897118,0.30653689,652.45,650.54,0.28177542]
[1746970897307,0.30653689,652.45,650.55,1.13406489]
[1746970897512,0.30653689,652.45,650.55,1.41584031]
[1746970898014,0.30653689,652.45,650.56,1.41584031]
[1746970898212,0.30653689,652.45,650.57,0.28177542]
[1746970898408,0.30653689,652.45,650.58,1.13406489]
[1746970898715,0.30653689,652.45,650.59,0.28177542]
[1746970899019,0.30653689,652.45,650.6,0.28177542]
[1746970899209,0.30653689,652.45,650.61,1.13406489]
[1746970899413,0.26685377,652.44,650.61,1.41584031]
[1746970899617,0.26685377,652.44,650.62,0.28177542]
[1746970899910,0.26685377,652.44,650.63,1.41584031]
[1746970900210,0.26685377,652.44,650.64,1.13406489]
[1746970900410,0.26685377,652.44,650.64,1.41584031]
[1746970900611,0.26685377,652.44,650.65,0.28177542]
[1746970900810,0.26685377,652.44,650.66,1.13406489]
[1746970901014,0.26685377,652.44,650.66,1.41584031]
[1746970901414,0.26685377,652.44,650.67,0.28177542]
[1746970901615,0.26685377,652.44,650.68,0.28177542]
[1746970901815,0.26685377,652.44,650.69,1.13406489]
[1746970902016,0.30653689,652.45,650.69,1.13406489]
[1746970902216,0.30653689,652.45,650.69,1.41584031]
[1746970902417,0.26687628,652.43,650.7,1.41584031]
[1746970902716,0.26687628,652.43,650.71,0.28177542]
[1746970903017,0.26687628,652.43,650.72,0.28177542]
[1746970903317,0.26687628,652.43,650.73,1.41584031]
[1746970903516,0.26687628,652.43,650.74,1.13406489]
[1746970903812,0.26687628,652.43,650.74,1.41584031]
[1746970904116,0.26687628,652.43,650.75,0.28177542]
[1746970904317,0.26687628,652.43,650.76,1.13406489]
[1746970904825,0.26687628,652.43,650.77,0.28177542]
[1746970905118,0.24432115,652.42,650.78,1.13406489]
[1746970905317,0.51122916,652.42,650.78,1.13406489]
[1746970905517,0.24432115,652.41,650.79,0.28177542]
[1746970905822,0.24432115,652.41,650.8,1.13406489]
[1746970906322,0.24432115,652.41,650.81,0.28177542]
[1746970907116,0.24432115,652.41,650.82,1.13406489]
[1746970907421,0.24432115,652.41,650.83,0.28177542]
[1746970908325,0.26692848,652.4,650.84,0.28177542]
[1746970908717,0.24432115,652.39,650.85,0.28177542]
[1746970909118,0.24432115,652.39,649.89,0.91180666]
[1746970909420,0.24432115,652.39,649.9,0.91180666]
[1746970909626,0.24432115,652.39,649.9,2.3573976]
[1746970909824,0.24432115,652.39,649.91,0.91180666]
[1746970910125,0.24432115,652.39,649.92,2.09038924]
[1746970910926,1.9775294,652.37,649.93,2.09038924]
[1746970911321,0.26700323,652.36,649.94,1.460358]
[1746970911523,0.26700323,652.36,649.95,0.28177542]
[1746970911720,0.26700323,652.36,649.96,1.17858258]
[1746970911923,0.26700323,652.36,649.97,0.28177542]
[1746970912219,0.26700323,652.36,649.98,1.460358]
[1746970912423,0.26700323,652.36,649.99,0.28177542]
[1746970912624,0.26700323,652.36,650.0,1.17858258]
[1746970912927,0.26700323,652.36,650.0,1.460358]
[1746970913129,0.26700323,652.36,650.01,1.17858258]
[1746970913427,0.26700323,652.36,650.01,1.460358]
[1746970913731,0.26700323,652.36,650.02,0.28177542]
[1746970914030,0.30653689,652.45,650.03,1.460358]
[1746970914328,0.26698685,652.35,650.04,0.28177542]
[1746970914523,0.26698685,652.35,650.04,1.460358]
[1746970914729,0.30653689,652.45,650.05,0.28177542]
[1746970914928,0.30653689,652.45,650.06,0.28177542]
[1746970915130,0.30653689,652.45,650.07,1.17858258]
[1746970915432,0.30653689,652.45,650.08,1.17858258]
[1746970915625,0.30653689,652.45,650.08,1.460358]
[1746970915930,0.30653689,652.45,650.09,1.460358]
[1746970916231,0.26691824,652.44,650.1,0.28177542]
[1746970916529,0.26691824,652.44,650.09,1.17858258]
[1746970916730,0.26691824,652.44,650.11,1.17858258]
[1746970917125,0.30653689,652.45,650.12,1.17858258]
[1746970917330,0.26697251,652.43,650.12,1.46048986]
[1746970917532,0.26697251,652.43,650.13,0.28190728]
[1746970917926,0.26697251,652.43,650.14,1.46048986]
[1746970918327,0.26697251,652.43,650.15,0.28190728]
[1746970918531,0.26697251,652.43,650.16,1.17858258]
[1746970918832,0.26697251,652.43,650.16,1.46048986]
[1746970919129,0.26697251,652.43,650.17,1.17858258]
[1746970919332,0.26697251,652.43,650.17,1.46048986]
[1746970919633,0.26697251,652.43,650.18,1.46048986]
[1746970920033,0.30653689,652.45,650.18,1.46048986]
[1746970920234,0.30659798,652.32,650.18,1.46048986]
[1746970920436,0.30659798,652.32,650.19,1.46048986]
[1746970920734,0.30659798,652.32,650.2,1.46048986]
[1746970921034,0.30659798,652.32,650.21,0.28190728]
[1746970921235,0.30659798,652.32,650.21,1.46048986]
[1746970921429,0.30659798,652.32,650.22,0.28190728]
[1746970921635,0.30659798,652.32,650.23,0.28190728]
[1746970921830,0.30659798,652.32,650.23,1.46048986]
[1746970922035,0.30659798,652.32,650.24,0.28190728]
[1746970922335,0.30659798,652.32,650.25,1.17858258]
[1746970922635,0.30659798,652.32,650.26,1.17858258]
[1746970922835,0.30659798,652.32,650.26,1.46045109]
[1746970923135,0.30659798,652.32,650.27,1.46045109]
[1746970923336,0.30659798,652.32,650.27,1.17858258]
[1746970923737,0.30659798,652.32,650.28,1.46046748]
[1746970924137,0.30659798,652.32,650.29,0.2818849]
[1746970924540,0.30659798,652.32,650.3,0.2818849]
[1746970924740,0.30659798,652.32,650.3,1.46046748]
[1746970924940,0.30659798,652.32,650.31,0.2818849]
[1746970925240,0.30659798,652.32,650.32,1.46046748]
[1746970925641,0.30659798,652.32,650.33,0.2818849]
[1746970925940,0.30659798,652.32,650.34,0.2818849]
[1746970926148,0.30659798,652.32,650.35,1.17858258]
[1746970926338,0.30659798,652.32,650.35,1.46046748]
[1746970926543,0.30659798,652.32,650.36,1.17858258]
[1746970926741,0.30659798,652.32,650.36,1.46046748]
[1746970927039,0.30659798,652.32,650.37,0.2818849]
[1746970927444,0.30659798,652.32,650.36,1.17858258]
[1746970927445,0.30659798,652.32,650.38,1.46046748]
[1746970927844,0.30659798,652.32,650.39,1.46046748]
[1746970928145,0.30659798,652.32,650.4,1.46046748]
[1746970928439,0.30659798,652.32,650.41,0.2818849]
[1746970928643,0.30659798,652.32,650.41,1.46046748]
[1746970928845,0.30659798,652.32,650.42,0.2818849]
[1746970929147,0.30659798,652.32,650.43,1.46046748]
[1746970929349,0.2669121,652.31,650.43,1.46046748]
[1746970929542,0.2669121,652.31,650.44,0.2818849]
[1746970929839,0.2669121,652.31,650.45,1.17858258]
[1746970930043,0.2669121,652.31,650.45,1.46046748]
[1746970930241,0.2669121,652.31,650.46,1.46046748]
[1746970930545,0.2669121,652.31,650.47,1.46046748]
[1746970930843,0.2669121,652.31,650.48,0.2818849]
[1746970931141,0.2669121,652.31,650.49,1.46046748]
[1746970931445,0.2669121,652.31,650.5,0.2818849]
[1746970931638,0.30661208,652.29,650.51,1.17858258]
[1746970931941,0.30661208,652.29,650.52,0.2818849]
[1746970932445,0.26692541,652.28,650.53,1.46046748]
[1746970932640,0.30662619,652.26,650.54,0.2818849]
[1746970932838,0.30662619,652.26,650.55,1.17858258]